bitfinex-derivatives/quotes_ETHF0:USTF0_20251204
["timestamp","ask_amount","ask_price","bid_price","bid_amount"]
[1764866606641,3.2078,3175.1,3175.0,23.46085]
[1764866607153,8.2463,3175.1,3175.0,18.13525]
[1764866607451,13.4678,3175.1,3175.0,13.04245]
[1764866607646,8.2463,3175.1,3175.0,5.25025]
[1764866607946,3.2078,3175.1,3175.0,19.46085]
[1764866608253,2.94400705,3175.8,3175.0,19.46085]
[1764866608254,3.2078,3175.4,3175.3,5.3256]
[1764866608550,0.00720705,3175.8,3175.7,10.57581]
[1764866608551,3.21500705,3175.8,3175.7,10.57581]
[1764866609455,3.21500705,3175.8,3175.7,23.46081]
[1764866609940,3.2078,3176.3,3176.2,5.0928]
[1764866610140,3.2078,3176.3,3176.2,10.4184]
[1764866610658,3.2078,3176.3,3176.2,23.3034]
[1764866610846,3.21060227,3176.3,3176.2,23.3034]
[1764866611546,8.24910227,3176.3,3176.2,17.9778]
[1764866612457,3.21060227,3176.3,3176.2,23.46079]
[1764866613155,3.21060227,3176.3,3176.2,23.45879]
[1764866613954,3.21060227,3176.3,3176.2,10.57579]
[1764866614452,3.21060227,3176.3,3176.2,22.34079]
[1764866615653,3.21252255,3176.6,3176.5,13.01527]
[1764866615952,3.21252255,3176.6,3176.5,18.26877]
[1764866616158,3.21252255,3176.6,3176.5,10.33037]
[1764866616548,3.21252255,3176.6,3176.5,22.04937]
[1764866616858,3.21639255,3176.6,3176.5,24.60567]
[1764866617151,8.31009255,3176.6,3176.5,23.21137]
[1764866617354,8.31009255,3176.6,3176.5,18.26777]
[1764866617856,13.47969255,3176.6,3176.5,18.26777]
[1764866618055,13.47969255,3176.6,3175.9,0.00472255]
[1764866618259,13.47969255,3176.6,3176.5,12.88]
[1764866618656,13.47969255,3176.6,3175.9,0.00472255]
[1764866618859,2.8706,3176.5,3176.0,12.88]
[1764866619248,5.0937,3176.2,3176.1,18.1094]
[1764866619449,5.0937,3176.0,3175.9,0.00472255]
[1764866619651,10.2633,3176.0,3175.9,5.23412255]
[1764866619857,13.4305,3176.0,3175.9,0.00472255]
[1764866620454,3.2078,3176.2,3175.9,10.17772255]
[1764866620656,8.3015,3176.2,3176.1,10.173]
[1764866620852,3.2078,3176.2,3176.1,10.173]
[1764866621052,3.2078,3176.2,3176.1,23.052]
[1764866621450,8.31009255,3176.6,3176.5,5.2294]
[1764866621658,13.47969255,3176.6,3176.5,5.2294]
[1764866621955,13.47969255,3176.6,3176.5,10.173]
[1764866621956,3.21639255,3176.6,3176.5,10.173]
[1764866622561,5.1684,3176.2,3176.1,5.14729]
[1764866622760,3.1262,3176.5,3176.1,19.18179]
[1764866623060,3.1262,3176.5,3176.1,10.54879]
[1764866623251,5.1684,3176.3,3176.2,17.8679]
[1764866623452,5.1684,3176.5,3176.4,4.9899]
[1764866623962,13.4832,3176.5,3176.4,12.878]
[1764866624765,13.4832,3176.5,3176.1,0.15739]
[1764866625063,13.4832,3176.5,3176.4,12.878]
[1764866625654,10.357,3176.0,3175.9,10.39612255]
[1764866625860,13.4832,3176.0,3175.9,11.15272255]
[1764866626250,13.4832,3176.0,3175.9,0.00472255]
[1764866626456,13.4832,3176.0,3175.9,4.36872255]
[1764866627360,10.357,3176.0,3175.9,9.35862255]
[1764866627752,13.4832,3176.0,3175.9,12.88072255]
[1764866628255,54.2832,3176.0,3175.9,12.88072255]
[1764866628460,13.4832,3176.0,3175.9,0.00472255]
[1764866628660,13.4832,3176.0,3175.9,12.88072255]
[1764866629162,40.8,3176.1,3176.0,10.3914]
[1764866629353,13.5648,3176.2,3176.1,4.9899]
[1764866629753,3.1262,3176.5,3176.1,10.3914]
[1764866629953,40.8,3176.4,3176.3,10.3914]
[1764866630166,40.8,3176.4,3175.9,0.16212255]
[1764866630359,5.1684,3176.1,3176.0,11.1389]
[1764866630867,3.1262,3176.5,3176.0,19.6179]
[1764866631066,10.357,3176.0,3175.9,5.15202255]
[1764866631363,10.357,3176.0,3175.9,12.87972255]
[1764866631364,13.4832,3176.0,3175.9,12.87972255]
[1764866632464,13.4832,3176.0,3175.9,0.00472255]
[1764866635971,13.4832,3176.0,3175.9,4.99462255]
[1764866636670,13.5648,3176.2,3176.1,4.9899]
[1764866636965,8.3762,3176.2,3176.1,10.3914]
[1764866637463,10.357,3176.2,3176.1,4.9899]
[1764866637670,10.357,3176.0,3175.9,10.55352255]
[1764866638167,40.8,3176.4,3175.9,10.55352255]
[1764866638364,3.1262,3176.5,3176.3,10.3914]
[1764866638568,13.4832,3176.5,3176.4,4.9899]
[1764866638967,54.2832,3176.5,3176.4,4.9899]
[1764866639175,54.2832,3176.5,3176.4,10.3914]
[1764866639364,54.2832,3176.5,3176.1,0.15739]
[1764866639760,10.357,3176.3,3176.2,22.5834]
[1764866640062,5.1684,3176.3,3176.2,22.5834]
[1764866640262,5.1684,3176.3,3176.2,23.2634]
[1764866640465,10.357,3176.2,3176.1,0.15739]
[1764866640670,43.9262,3176.5,3176.4,10.3914]
[1764866640864,5.1684,3176.2,3176.1,23.41979]
[1764866641060,10.357,3176.2,3176.1,4.9899]
[1764866641271,10.357,3176.0,3175.9,4.99462255]
[1764866641472,13.4832,3176.0,3175.9,4.99462255]
[1764866641666,13.5648,3176.2,3176.1,4.9899]
[1764866641865,13.5648,3176.2,3175.9,12.87572255]
[1764866641866,10.357,3176.0,3175.9,4.99462255]
[1764866642072,13.4832,3176.0,3175.9,10.12072255]
[1764866643372,13.4832,3176.0,3175.9,12.87472255]
[1764866643962,13.4832,3176.0,3175.9,0.00472255]
[1764866644374,13.4832,3176.0,3175.9,5.49482255]
[1764866644672,13.4832,3176.0,3175.9,0.00472255]
[1764866647367,14.28392535,3176.0,3175.9,0.00472255]
[1764866650471,10.3022,3175.2,3175.1,10.66654]
[1764866650670,10.3022,3175.2,3175.1,5.4901]
[1764866650869,10.3022,3175.2,3175.1,18.3571]
[1764866651063,5.0621,3175.2,3175.1,23.3761]
[1764866651270,5.0621,3175.5,3175.4,10.5091]
[1764866651582,10.3022,3175.5,3175.4,10.5091]
[1764866652081,10.3022,3175.5,3175.4,5.4901]
[1764866652378,5.0621,3175.1,3175.0,10.66655]
[1764866652570,10.3022,3175.1,3175.0,10.66655]
[1764866652770,3.004,3175.5,3174.9,13.7169]
[1764866652771,5.0621,3175.0,3174.9,13.7169]
[1764866652979,5.0621,3175.0,3174.9,26.5829]
[1764866653173,5.0621,3175.0,3174.9,13.7169]
[1764866653378,5.0621,3175.0,3174.9,26.5829]
[1764866653780,5.0621,3175.0,3174.9,26.5819]
[1764866654277,10.3022,3175.0,3174.9,13.7169]
[1764866654473,13.3062,3175.0,3174.9,21.5629]
[1764866654879,13.3062,3175.0,3174.9,3.2078]
[1764866655178,13.3062,3175.0,3174.9,21.9419]
[1764866655179,5.0621,3175.0,3174.9,21.9419]
[1764866655380,10.3022,3175.0,3174.9,3.2078]
[1764866655577,13.3062,3175.0,3174.9,16.0728]
[1764866657086,13.3062,3175.0,3174.9,21.5629]
[1764866657477,13.3062,3175.0,3174.9,16.0728]
[1764866657676,13.3062,3175.0,3174.9,26.5819]
[1764866657677,10.3022,3175.0,3174.9,26.5819]
[1764866657977,10.3022,3175.0,3174.9,21.5629]
[1764866658178,10.3022,3175.0,3174.9,26.5819]
[1764866658588,5.0621,3175.0,3174.9,13.7169]
[1764866658884,8.2699,3175.7,3175.6,10.5091]
[1764866659085,13.51,3175.7,3175.3,0.15743]
[1764866659385,8.2699,3175.7,3175.6,10.5091]
[1764866659582,3.2078,3175.7,3175.6,10.5091]
[1764866659885,3.1262,3176.0,3175.9,10.5091]
[1764866659886,5.0621,3176.0,3175.9,10.5091]
[1764866660083,10.3022,3176.0,3175.9,23.3721]
[1764866660477,13.51,3176.1,3176.0,5.4901]
[1764866660682,8.2699,3176.1,3176.0,13.5145]
[1764866660875,5.0621,3176.0,3175.9,0.1574]
[1764866661078,10.3022,3176.0,3175.9,23.5295]
[1764866661274,0.00859255,3176.6,3176.5,13.67187]
[1764866661478,4.65946087,3177.5,3176.5,13.67187]
[1764866661479,8.0661,3177.5,3177.4,5.4901]
[1764866661678,0.91830165,3177.9,3177.4,26.5789]
[1764866661882,11.22050165,3177.9,3177.8,3.2078]
[1764866662082,3.004,3178.5,3177.8,13.7169]
[1764866662278,5.0621,3178.4,3178.3,5.4901]
[1764866662478,0.00249554,3178.4,3178.3,17.88368651]
[1764866662684,0.00249554,3178.4,3178.3,23.37378651]
[1764866663279,0.00249554,3178.4,3178.3,10.51178651]
[1764866663480,0.00249554,3178.4,3178.3,23.37178651]
[1764866664090,0.00249554,3178.4,3178.3,31.75094573]
[1764866664888,0.00249554,3178.4,3178.3,10.51178651]
[1764866665092,0.00249554,3178.4,3178.3,22.36278651]
[1764866666187,0.00472255,3178.7,3178.6,10.5091]
[1764866666389,0.00472255,3178.7,3178.6,13.7169]
[1764866666578,3.004,3180.0,3178.8,0.15725]
[1764866666783,10.3022,3179.7,3179.6,3.2078]
[1764866667088,10.3022,3179.7,3179.6,16.0628]
[1764866667390,10.30593165,3179.7,3179.6,16.0628]
[1764866669990,10.30593165,3179.7,3179.6,21.5529]
[1764866670184,10.30593165,3179.7,3179.6,16.0628]
[1764866670693,10.30593165,3179.7,3179.6,3.2078]
[1764866670891,10.30593165,3179.7,3179.6,15.3068]
[1764866671389,51.10593165,3179.7,3179.6,15.3068]
[1764866671788,51.10593165,3179.7,3179.6,3.2078]
[1764866672585,0.00373165,3179.7,3179.6,10.5091]
[1764866673082,0.00373165,3179.7,3179.6,23.3561]
[1764866673290,5.06583165,3179.7,3179.6,23.3561]
[1764866673794,5.06583165,3179.7,3178.8,3.2078]
[1764866673795,9.5055,3178.9,3178.8,3.2078]
[1764866673996,4.7651,3178.9,3178.8,13.1539]
[1764866674193,2.8648,3179.0,3178.9,4.8933]
[1764866674194,7.6299,3179.0,3178.9,4.8933]
[1764866674394,7.6299,3179.0,3178.9,14.4033]
[1764866674596,0.00373165,3179.7,3179.6,9.9461]
[1764866674793,9.5055,3179.6,3179.5,3.2078]
[1764866674991,9.5055,3179.6,3179.5,16.0528]
[1764866675495,9.5055,3179.6,3179.5,16.0518]
[1764866676193,4.7651,3179.6,3179.5,8.1011]
[1764866676388,2.8648,3179.5,3179.1,3.2078]
[1764866676594,4.7651,3179.2,3179.1,13.1539]
[1764866676898,0.00373165,3179.7,3179.6,9.9461]
[1764866677393,4.76883165,3179.7,3179.6,19.4701]
[1764866677695,4.76883165,3179.7,3178.0,0.00472255]
[1764866677696,9.5055,3178.4,3178.0,0.00472255]
[1764866677893,2.8648,3178.5,3177.0,2.2347]
[1764866677894,2.8648,3178.0,3177.0,2.2347]
[1764866678095,3.2078,3177.4,3177.3,13.1539]
[1764866678284,3.2078,3177.8,3177.7,9.9461]
[1764866678493,3.2078,3177.8,3177.7,13.1539]
[1764866678696,3.21103212,3177.8,3177.7,13.15764674]
[1764866680698,3.21103212,3177.8,3177.7,29.99741471]
[1764866680898,0.00323212,3177.8,3177.7,25.99864674]
[1764866681492,0.0005456,3177.8,3177.7,25.99864674]
[1764866681696,0.0005456,3177.8,3177.7,31.99864674]
[1764866682302,0.0005456,3177.8,3177.7,32.15595674]
[1764866683397,3.20440155,3178.2,3178.1,0.15729]
[1764866683603,3.2078,3178.8,3178.7,9.794]
[1764866683906,12.8602,3178.8,3178.7,12.839]
[1764866684392,12.86327921,3178.8,3178.7,12.839]
[1764866684592,7.89957921,3178.8,3178.7,22.633]
[1764866684802,3.21087921,3178.8,3178.7,22.633]
[1764866685396,0.00472255,3179.1,3179.0,11.45395]
[1764866685697,7.8965,3179.8,3179.7,5.0861]
[1764866685904,12.8602,3179.8,3179.7,12.838]
[1764866686097,12.8602,3179.8,3179.1,3.36504]
[1764866686306,12.8602,3179.8,3179.7,12.231]
[1764866686601,12.86334849,3179.8,3179.7,12.838]
[1764866688000,7.89964849,3179.8,3179.7,12.838]
[1764866688194,3.21094849,3179.8,3179.7,22.632]
[1764866688601,3.21094849,3179.8,3179.7,22.78921]
[1764866688998,3.21094849,3179.8,3179.7,9.95121]
[1764866689189,3.21094849,3179.8,3179.7,22.78721]
[1764866689396,0.00314849,3179.8,3179.7,22.78721]
[1764866689992,4.69184849,3179.8,3179.7,5.0861]
[1764866690502,9.65554849,3179.8,3179.7,3.2078]
[1764866690805,9.6524,3179.5,3179.4,0.00472255]
[1764866690995,12.4646,3179.5,3179.4,9.36352255]
[1764866691195,7.5009,3179.5,3179.4,14.44962255]
[1764866691505,0.00314849,3179.8,3179.7,9.794]
[1764866691704,0.80372324,3179.8,3179.7,9.794]
[1764866691905,0.80372324,3179.8,3179.7,22.627]
[1764866692107,0.00314849,3179.8,3179.7,22.627]
[1764866692906,0.00314849,3179.8,3179.7,22.78421]
[1764866693304,0.00314849,3179.8,3179.7,22.78321]
[1764866694810,4.69184849,3179.8,3179.7,21.28211]
[1764866695002,5.48823014,3179.8,3179.7,21.28211]
[1764866695203,5.48823014,3179.8,3179.7,8.2939]
[1764866695404,5.48823014,3179.8,3179.7,21.1249]
[1764866695700,0.79953014,3179.8,3179.7,25.8328]
[1764866696105,10.45193014,3179.8,3179.7,16.0388]
[1764866696497,10.45193014,3179.8,3179.7,3.2078]
[1764866696705,10.45193014,3179.8,3179.7,16.0378]
[1764866696912,10.45193014,3179.8,3179.7,16.0368]
[1764866697106,5.48823014,3179.8,3179.7,25.8308]
[1764866698306,0.79953014,3179.8,3179.7,25.8308]
[1764866700018,0.79953014,3179.8,3179.7,25.8298]
[1764866700310,5.48842322,3179.8,3179.7,25.8298]
[1764866700501,0.00314849,3179.8,3179.7,29.19481]
[1764866700703,1.65546087,3180.9,3180.0,12.7781]
[1764866700902,3.2078,3181.8,3181.7,9.794]
[1764866701104,3.2078,3182.2,3181.7,25.8288]
[1764866701323,0.79622936,3182.1,3181.7,16.0348]
[1764866701610,12.4646,3181.8,3181.0,4.8599]
[1764866701807,12.4646,3181.8,3181.7,0.00281615]
[1764866702002,0.00835011,3182.1,3181.7,13.98981615]
[1764866702208,0.80450994,3182.1,3182.0,9.794]
[1764866702403,0.00835011,3182.1,3182.0,9.794]
[1764866702799,0.00835011,3182.1,3182.0,25.8268]
[1764866703008,6.02,3183.0,3182.4,10.4973]
[1764866703210,41.59411086,3182.9,3182.8,5.0861]
[1764866703408,41.59411086,3182.9,3182.4,3.2078]
[1764866703707,40.8,3182.9,3182.8,12.825]
[1764866704016,41.59688498,3182.9,3182.8,12.825]
[1764866704204,0.79688498,3182.9,3182.8,10.2396]
[1764866704407,4.74828125,3182.9,3182.5,0.15708]
[1764866704607,9.576,3182.7,3182.0,3.2078]
[1764866704803,9.576,3182.1,3181.5,3.2078]
[1764866705009,9.576,3182.1,3181.8,4.452]
[1764866705205,4.745,3182.1,3181.7,3.2058936]
[1764866705406,3.2078,3182.2,3182.0,5.104]
[1764866705602,4.745,3182.1,3181.7,3.2058936]
[1764866705811,9.576,3181.8,3181.7,0.00281615]
[1764866706111,12.2694,3181.8,3181.6,10.558]
[1764866706319,2.6934,3182.4,3181.7,5.104]
[1764866706615,4.745,3181.7,3181.6,6.455]
[1764866706914,15.4772,3181.8,3181.1,0.00471438]
[1764866707104,2.6934,3181.8,3181.3,13.46057745]
[1764866707311,9.576,3181.4,3181.3,3.20307745]
[1764866707520,5.9012,3181.8,3181.3,14.74007745]
[1764866708124,3.2078,3182.2,3181.3,14.74007745]
[1764866708421,0.79098544,3182.1,3181.3,11.537]
[1764866708624,0.79098544,3182.1,3181.3,8.30707745]
[1764866708823,0.79098544,3182.1,3181.4,8.534]
[1764866709029,5.9012,3181.8,3181.2,3.2078]
[1764866709328,9.576,3181.3,3181.2,3.2078]
[1764866709529,4.745,3181.2,3181.1,0.00701573]
[1764866709926,12.2694,3181.2,3181.1,13.68109318]
[1764866710321,12.2694,3181.2,3181.1,0.00701573]
[1764866710526,40.8,3181.5,3181.1,8.31409318]
[1764866710720,0.00471438,3181.6,3181.5,10.41463]
[1764866710932,7.4384,3182.4,3181.6,0.15712]
[1764866711124,7.4384,3182.4,3182.0,3.2078]
[1764866711324,4.745,3182.2,3181.6,0.15712]
[1764866711626,9.576,3182.2,3182.1,3.20307745]
[1764866711825,45.545,3182.2,3182.1,3.20307745]
[1764866712825,0.00306872,3182.5,3182.1,13.46057745]
[1764866713220,40.80306872,3182.5,3182.1,13.46057745]
[1764866713422,40.80306872,3182.5,3182.1,3.20307745]
[1764866713733,0.00306872,3182.5,3182.1,3.20307745]
[1764866714123,40.80306872,3182.5,3182.1,3.20307745]
[1764866714426,0.00306872,3182.5,3182.4,10.2575]
[1764866717033,0.00306872,3182.5,3182.4,25.1906]
[1764866717637,0.00025257,3182.5,3182.4,25.1906]
[1764866717838,0.00025257,3182.5,3182.4,23.22758]
[1764866718242,9.576,3182.0,3181.9,3.2078]
[1764866718437,9.576,3182.0,3181.9,16.0198]
[1764866718838,2.6934,3182.4,3181.9,16.0198]
[1764866719136,7.95305257,3182.5,3181.9,16.1769]
[1764866719332,7.95305257,3182.5,3182.0,12.812]
[1764866719537,4.745,3182.1,3181.9,3.2078]
[1764866719734,2.6934,3182.4,3182.0,16.489]
[1764866720133,0.00025257,3182.5,3182.3,10.2575]
[1764866720930,0.00025257,3182.5,3182.4,3.2078]
[1764866721129,0.00025257,3182.5,3182.4,6.0379]
[1764866721325,0.00025257,3182.5,3182.4,6.19498]
[1764866722538,0.00025257,3182.5,3182.4,14.89398]
[1764866722928,0.00025257,3182.5,3182.4,6.19498]
[1764866723130,0.00025257,3182.5,3182.4,12.27188]
[1764866723542,0.00025257,3182.5,3182.4,19.00398]
[1764866723739,0.00025257,3182.5,3182.4,21.64177402]
[1764866723938,0.00025257,3182.5,3182.4,31.70602721]
[1764866724140,0.00025257,3182.5,3182.4,43.01802721]
[1764866725042,0.00023382,3182.9,3182.8,5.26106]
[1764866725238,0.00023382,3182.9,3182.8,13.86121495]
[1764866726243,2.6934,3184.5,3183.7,10.2575]
[1764866726444,0.7935048,3184.4,3183.8,16.01951438]
[1764866726647,4.745,3184.6,3183.8,16.01951438]
[1764866726949,9.576,3184.3,3184.2,3.2078]
[1764866727144,9.576,3183.9,3183.8,0.00471438]
[1764866727346,9.576,3183.9,3183.8,9.91271438]
[1764866727546,9.576,3183.9,3183.8,13.11919156]
[1764866727753,4.745,3183.9,3183.8,18.22319156]
[1764866727948,9.576,3184.0,3183.8,13.11919156]
[1764866728253,9.576,3183.9,3183.8,3.21119156]
[1764866728439,9.576,3183.9,3183.8,16.01719156]
[1764866728845,9.576,3183.9,3183.8,3.21119156]
[1764866729151,9.576,3183.9,3183.8,9.04219156]
[1764866729344,10.36270469,3183.9,3183.8,9.04219156]
[1764866729651,10.36270469,3183.9,3183.8,16.01619156]
[1764866729850,4.745,3183.9,3183.8,21.12019156]
[1764866730348,0.00262953,3184.3,3183.9,10.2575]
[1764866730547,5.53155636,3184.2,3184.1,5.104]
[1764866730753,10.36255636,3184.2,3184.1,12.804]
[1764866730952,9.576,3183.9,3183.8,3.21119156]
[1764866731153,9.576,3183.9,3183.8,16.01419156]
[1764866731647,9.576,3183.9,3183.8,3.21119156]
[1764866731846,4.745,3183.9,3183.8,16.01319156]
[1764866732249,4.745,3183.9,3183.8,21.11719156]
[1764866732853,3.2078,3184.2,3183.8,26.27069156]
[1764866733055,0.78657272,3184.1,3183.8,26.27069156]
[1764866733356,3.2078,3184.2,3183.8,26.27069156]
[1764866734249,3.2078,3184.2,3182.9,11.309]
[1764866734250,4.4853,3181.6,3181.3,16.0088]
[1764866734452,4.4853,3181.5,3181.4,3.2078]
[1764866734646,9.4375,3181.5,3181.3,3.36481]
[1764866734845,9.4375,3181.5,3181.4,4.525]
[1764866735049,9.44133406,3181.5,3181.4,4.52835307]
[1764866735246,9.44133406,3181.5,3181.4,4.68536307]
[1764866736358,4.48913406,3181.5,3181.4,4.68536307]
[1764866736953,0.00383406,3181.5,3181.4,9.63926307]
[1764866737456,0.00383406,3181.5,3181.4,21.12306307]
[1764866737655,9.44133406,3181.5,3181.4,0.16036307]
[1764866738757,0.00383406,3181.5,3181.4,13.18946307]
[1764866740253,4.48913406,3181.5,3181.4,0.16036307]
[1764866740457,0.00383406,3181.5,3181.4,5.11426307]
[1764866740848,0.00383406,3181.5,3181.4,13.18946307]
[1764866742456,8.92573406,3181.5,3181.4,0.16036307]
[1764866743653,8.92573406,3181.5,3181.4,12.96336307]
[1764866743849,8.92573406,3181.5,3181.4,0.16036307]
[1764866744050,8.92573406,3181.5,3181.4,12.96336307]
[1764866744251,0.00383406,3181.5,3181.4,25.32936307]
[1764866746169,8.92573406,3181.5,3181.4,12.96336307]
[1764866747065,8.92573406,3181.5,3181.4,0.16036307]
[1764866747267,8.92573406,3181.5,3181.4,12.96336307]
[1764866747762,8.92573406,3181.5,3181.4,0.16036307]
[1764866747970,4.50683406,3181.5,3181.4,17.53046307]
[1764866748157,0.00383406,3181.5,3181.4,17.53046307]
[1764866748357,0.00383406,3181.5,3181.4,25.32936307]
[1764866748569,4.50683406,3181.5,3181.4,20.73826307]
[1764866749371,4.50683406,3181.5,3181.4,7.93526307]
[1764866749580,4.50683406,3181.5,3181.4,20.73826307]
[1764866750882,0.00383406,3181.5,3181.4,20.73826307]
[1764866751077,0.00383406,3181.5,3181.4,25.32936307]
[1764866752183,0.00383406,3181.5,3181.4,22.12156307]
[1764866752384,0.00383406,3181.5,3181.4,25.32936307]
[1764866753573,4.50683406,3181.5,3181.4,7.93526307]
[1764866753981,8.92573406,3181.5,3181.4,17.50326307]
[1764866754186,8.92573406,3181.5,3181.4,7.93526307]
[1764866754487,8.92573406,3181.5,3181.4,17.50226307]
[1764866754680,11.71953406,3181.5,3181.4,0.16036307]
[1764866754887,0.00383406,3181.5,3181.4,22.12156307]
[1764866755387,4.50683406,3181.5,3181.4,17.53046307]
[1764866755582,11.71953406,3181.5,3181.4,0.16036307]
[1764866755781,8.9219,3181.2,3181.1,0.00471438]
[1764866756082,12.1297,3181.2,3181.1,0.00471438]
[1764866756282,11.7157,3181.0,3180.9,10.154]
[1764866756485,11.7157,3181.0,3179.7,11.313]
[1764866756486,2.7938,3180.5,3180.1,16.0108]
[1764866756887,2.7938,3180.5,3180.1,16.01454861]
[1764866757480,3.2078,3180.7,3180.6,9.1582]
[1764866757883,44.0078,3180.7,3180.2,0.15719]
[1764866758087,8.9219,3180.2,3180.1,3.21154861]
[1764866758279,8.9219,3180.2,3180.1,10.91634861]
[1764866758584,8.9219,3180.2,3180.1,16.01454861]
[1764866758780,44.0078,3180.7,3180.6,9.1582]
[1764866758976,3.2078,3180.7,3180.6,9.1582]
[1764866759173,2.7938,3180.5,3180.1,9.31913861]
[1764866759476,12.1297,3180.7,3180.2,12.6868]
[1764866759881,40.8,3180.6,3180.5,4.5671]
[1764866760376,4.503,3180.2,3180.1,4.72803861]
[1764866760574,2.7938,3180.5,3180.1,9.16194861]
[1764866760780,3.2078,3180.7,3180.6,4.5671]
[1764866760977,12.1297,3180.7,3180.3,0.15718]
[1764866761188,4.503,3180.2,3180.1,0.00374861]
[1764866761386,2.7938,3180.5,3180.4,4.5671]
[1764866761585,3.2078,3180.7,3180.4,4.5671]
[1764866761586,3.2078,3180.7,3180.6,9.1582]
[1764866762391,7.7108,3181.2,3181.1,4.5671]
[1764866762888,7.7108,3181.2,3181.1,7.7749]
[1764866763682,40.8,3181.4,3181.1,12.366]
[1764866763884,0.00383406,3181.5,3181.4,9.2724]
[1764866764078,0.00383406,3181.5,3181.4,4.6357]
[1764866764276,0.00383406,3181.5,3181.2,12.804]
[1764866764277,11.22863406,3181.5,3181.2,12.804]
[1764866764482,0.00383406,3181.5,3181.4,12.4802]
[1764866764896,0.00383406,3181.5,3181.4,25.2832]
[1764866765289,0.00383406,3181.5,3181.4,12.4802]
[1764866765490,0.00383406,3181.5,3181.4,25.2832]
[1764866765791,6.0016,3182.5,3181.7,9.2724]
[1764866766183,3.2078,3182.9,3182.4,4.6357]
[1764866766382,3.2078,3182.9,3182.4,17.4387]
[1764866766688,4.4929,3182.8,3182.7,4.6357]
[1764866766889,4.4929,3182.8,3182.6,12.803]
[1764866767093,8.7672,3181.7,3181.2,12.803]
[1764866767290,4.4929,3181.6,3181.3,3.20308563]
[1764866767491,8.7672,3181.4,3181.3,3.20308563]
[1764866767696,4.4929,3181.2,3180.8,3.2078]
[1764866767991,4.4929,3181.2,3180.9,16.00508563]
[1764866768490,4.4929,3181.2,3180.9,3.20308563]
[1764866768491,7.7007,3181.2,3180.9,3.20308563]
[1764866768682,7.7007,3181.2,3181.0,12.802]
[1764866769188,3.2078,3181.2,3181.1,7.83878563]
[1764866769393,3.2078,3181.2,3181.1,12.47548563]
[1764866769786,3.2078,3181.2,3181.1,7.83878563]
[1764866770589,14.4326,3181.2,3181.1,16.00508563]
[1764866771092,7.7007,3181.2,3181.1,16.00508563]
[1764866771485,7.7007,3181.2,3181.1,20.64078563]
[1764866771694,0.00471438,3181.3,3181.2,4.6357]
[1764866772094,0.00471438,3181.3,3181.2,9.2724]
[1764866773494,0.00471438,3181.3,3181.2,11.91024]
[1764866774695,0.00471438,3181.3,3181.2,9.42954]
[1764866775183,8.77191438,3181.3,3181.2,4.6357]
[1764866775388,8.77191438,3181.3,3181.1,3.20308563]
[1764866775389,11.2248,3181.2,3181.1,3.20308563]
[1764866775696,0.00471438,3181.3,3181.2,4.6357]
[1764866775886,4.49761438,3181.3,3181.2,4.6357]
[1764866776088,4.4929,3181.2,3181.1,13.98208563]
[1764866776287,4.4929,3181.2,3181.1,3.20308563]
[1764866776487,4.4929,3181.2,3181.1,16.00308563]
[1764866776899,8.7672,3181.2,3181.1,16.00308563]
[1764866777198,11.2248,3181.2,3181.1,16.00308563]
[1764866778693,11.2248,3181.2,3180.0,4.80997896]
[1764866778694,8.7672,3179.5,3178.4,2.81736304]
[1764866778889,3.2078,3180.0,3179.4,11.4587]
[1764866779100,40.8,3179.9,3179.5,13.1991]
[1764866779397,40.8,3179.9,3179.8,4.6357]
[1764866779795,0.00407755,3179.9,3179.8,9.67536638]
[1764866780000,3.2078,3180.6,3180.1,9.2724]
[1764866780393,40.8,3180.5,3180.2,0.39130807]
[1764866780595,40.8,3180.5,3180.3,12.799]
[1764866780999,4.49660309,3180.5,3180.4,0.39130807]
[1764866781199,0.00370309,3180.5,3180.4,5.02700807]
[1764866781701,0.00370309,3180.5,3180.4,9.66370807]
[1764866782198,0.00370309,3180.5,3180.4,9.2724]
[1764866782799,0.00370309,3180.5,3180.4,9.66370807]
[1764866783003,2.8249094,3181.0,3180.9,9.2724]
[1764866784009,2.82843455,3181.0,3180.9,9.2724]
[1764866784299,7.32133455,3181.0,3180.4,0.15718]
[1764866784695,7.32133455,3181.0,3180.5,11.666]
[1764866785096,7.32133455,3181.0,3180.9,4.6357]
[1764866785292,7.32133455,3181.0,3180.5,11.666]
[1764866785602,7.32133455,3181.0,3180.4,0.15718]
[1764866785802,7.32133455,3181.0,3180.6,12.8]
[1764866785997,4.49642515,3181.0,3180.6,12.8]
[1764866786302,0.00352515,3181.0,3180.9,9.2724]
[1764866790109,3.2078,3181.4,3181.3,9.2724]
[1764866791108,3.21133394,3181.4,3181.3,9.2724]
[1764866792008,3.21133394,3181.4,3181.3,17.4347]
[1764866792009,11.97853394,3181.4,3181.3,17.4347]
[1764866792308,11.97853394,3181.4,3181.3,12.799]
[1764866793311,4.4929,3181.2,3181.1,4.6357]
[1764866793503,4.4929,3181.2,3181.1,17.4337]
[1764866793705,3.21133394,3181.4,3181.1,22.0704]
[1764866793904,7.24393394,3181.4,3181.3,4.3148]
[1764866794606,4.0326,3181.2,3181.1,12.798]
[1764866794806,4.0326,3181.2,3181.1,17.1128]
[1764866795011,4.0326,3181.2,3181.1,8.6526]
[1764866795215,4.0326,3181.2,3181.1,21.4506]
[1764866796115,3.21133394,3181.4,3181.1,21.4506]
[1764866797216,3.21133394,3181.4,3181.3,8.6526]
[1764866797407,7.24393394,3181.4,3181.3,8.6526]
[1764866797716,11.34913394,3181.4,3181.3,4.3148]
[1764866798015,11.34913394,3181.4,3181.1,12.798]
[1764866798905,11.34913394,3181.4,3181.3,4.3148]
[1764866800112,3.21133394,3181.4,3181.3,8.6526]
[1764866800309,0.00353394,3181.4,3181.3,8.80974]
[1764866801916,3.394e-05,3181.4,3181.3,8.80974]
[1764866802519,3.394e-05,3181.4,3181.3,18.87997393]